[Event "Azerbaijan Championship 2021"]
[Site "Nakhchivan"]
[Date "2021.05.13"]
[Round "10.4"]
[White "Abbasov, Farid"]
[Black "Iskandarov, Misratdin"]
[Result "1/2-1/2"]
[ECO "D85"]
[WhiteElo "2528"]
[BlackElo "2535"]
[Annotator "ChessBase"]
[PlyCount "183"]
[EventDate "2021.05.04"]
[EventType "tourn"]
[EventCountry "AZE"]
[SourceTitle "playchess.com"]
[Source "ChessBase"]
[SourceQuality "1"]
[TimeControl "40/5400+30:1800+30"]

1. d4 {[%emt 0:01:44]} Nf6 {[%emt 0:00:00]} 2. c4 {[%emt 0:00:15]} g6 {[%emt 0:00:00]} 3. Nc3 {[%emt 0:00:06]} d5 {[%emt 0:01:29]} 4. cxd5 {[%emt 0:03:21]} Nxd5 {[%emt 0:00:07]} 5. e4 {[%emt 0:00:04]} Nxc3 {[%emt 0:00:07]} 6. bxc3 {[%emt 0:00:03]} Bg7 {[%emt 0:00:07]} 7. Qa4+ {[%emt 0:04:55]} Nd7 {[%emt 0:02:00]} 8. Be3 {[%emt 0:00:14]} O-O {[%emt 0:00:14]} 9. Rd1 {[%emt 0:00:07]} a6 {[%emt 0:04:32]} 10. Qa3 {[%emt 0:14:27]} c5 {[%emt 0:08:12]} 11. Nf3 {[%emt 0:05:30]} Qc7 {[%emt 0:00:38]} 12. Bd3 {[%emt 0:12:26]} b5 {[%emt 0:06:36]} 13. O-O {[%emt 0:01:14]} Bb7 {[%emt 0:00:25]} 14. d5 {[%emt 0:03:12]} Rfe8 {[%emt 0:06:36]} 15. Qc1 {[%emt 0:08:49]} Qa5 {[%emt 0:10:34]} 16. c4 {[%emt 0:00:35]} Qxa2 {[%emt 0:00:14]} 17. cxb5 {[%emt 0:00:15]} Rec8 {[%emt 0:01:13]} 18. Bh6 {[%emt 0:10:12]} Bxh6 {[%emt 0:22:44]} 19. Qxh6 {[%emt 0:00:21]} c4 {[%emt 0:00:08]} 20. Qh3 {[%emt 0:21:55]} Nf8 {[%emt 0:01:44]} 21. Bb1 {[%emt 0:00:13]} Qb2 {[%emt 0:00:32]} 22. Qh4 {[%emt 0:01:05]} Re8 {[%emt 0:01:58]} 23. bxa6 {[%emt 0:05:09]} Bxa6 {[%emt 0:02:50]} 24. Rfe1 {[%emt 0:00:10]} c3 {[%emt 0:00:34]} 25. Rc1 {[%emt 0:00:35]} e6 {[%emt 0:05:01]} 26. Qf6 {[%emt 0:01:10]} exd5 {[%emt 0:03:11]} 27. Ne5 {[%emt 0:00:58]} Rxe5 {[%emt 0:08:16]} 28. Qxe5 {[%emt 0:00:02]} d4 {[%emt 0:00:44]} 29. Qxd4 {[%emt 0:00:19]} Rc8 {[%emt 0:00:04]} 30. Rc2 {[%emt 0:02:50]} Ne6 {[%emt 0:00:16]} 31. Qf6 {[%emt 0:01:58]} Qb4 {[%emt 0:03:23]} 32. Ba2 {[%emt 0:00:10]} Qd4 {[%emt 0:00:08]} 33. Qe7 {[%emt 0:00:28]} Bc4 {[%emt 0:00:19]} 34. Qb4 {[%emt 0:01:04]} Bxa2 {[%emt 0:00:49]} 35. Qa3 {[%emt 0:00:46]} Bb1 {[%emt 0:04:40]} 36. Rxb1 {[%emt 0:00:10]} Qxe4 {[%emt 0:00:02]} 37. Qa6 {[%emt 0:00:43]} Qxc2 {[%emt 0:06:20]} 38. Qxc8+ {[%emt 0:00:03]} Kg7 {[%emt 0:00:04]} 39. Rf1 {[%emt 0:00:18]} Nf4 {[%emt 0:00:52]} 40. Qc5 {[%emt 0:00:00]} Ne2+ {[%emt 0:00:00]} 41. Kh1 {[%emt 0:00:51]} Qd2 {[%emt 0:05:07]} 42. Qe5+ {[%emt 0:03:52]} Kh6 {[%emt 0:02:49]} 43. f4 {[%emt 0:00:23]} f5 {[%emt 0:16:42]} 44. Qe7 {[%emt 0:08:16]} Nxf4 {[%emt 0:00:30]} 45. Qh4+ {[%emt 0:00:04]} Nh5 {[%emt 0:00:06]} 46. Qb4 {[%emt 0:05:43]} Qe3 {[%emt 0:04:24]} 47. Qf8+ {[%emt 0:03:15]} Ng7 {[%emt 0:00:07]} 48. Qa3 {[%emt 0:00:04]} Nh5 {[%emt 0:04:38]} 49. Rc1 {[%emt 0:02:31]} Nf4 {[%emt 0:00:21]} 50. Qxc3 {[%emt 0:05:22]} Nd3 {[%emt 0:00:47]} 51. Rc2 {[%emt 0:00:07]} Nf2+ {[%emt 0:01:01]} 52. Kg1 {[%emt 0:00:01]} Nh3+ {[%emt 0:00:09]} 53. Kf1 {[%emt 0:00:02]} Qg1+ {[%emt 0:00:08]} 54. Ke2 {[%emt 0:00:07]} Qxg2+ {[%emt 0:00:54]} 55. Kd1 {[%emt 0:01:32]} Qg1+ {[%emt 0:01:10]} 56. Qe1 {[%emt 0:00:14]} Qg4+ {[%emt 0:00:46]} 57. Qe2 {[%emt 0:00:37]} Qa4 {[%emt 0:00:33]} 58. Qc4 {[%emt 0:00:48]} Qa1+ {[%emt 0:00:18]} 59. Kd2 {[%emt 0:00:22]} f4 {[%emt 0:00:25]} 60. Qe4 {[%emt 0:01:52]} Qa5+ {[%emt 0:00:20]} 61. Kc1 {[%emt 0:00:26]} Qa3+ {[%emt 0:00:09]} 62. Kb1 {[%emt 0:00:37]} Qb3+ {[%emt 0:00:59]} 63. Kc1 {[%emt 0:00:52]} Qa3+ {[%emt 0:00:13]} 64. Kb1 {[%emt 0:00:01]} Qd6 {[%emt 0:00:22]} 65. Rc6 {[%emt 0:01:42]} Qd1+ {[%emt 0:00:45]} 66. Kb2 {[%emt 0:00:36]} Qf1 {[%emt 0:00:15]} 67. Rc2 {[%emt 0:00:55]} Ng5 {[%emt 0:00:38]} 68. Qe5 {[%emt 0:00:12]} Kh5 {[%emt 0:00:28]} 69. Qd5 {[%emt 0:00:54]} h6 {[%emt 0:00:53]} 70. Qc5 {[%emt 0:00:30]} Qe1 {[%emt 0:00:20]} 71. Rc4 {[%emt 0:01:43]} Kg4 {[%emt 0:00:45]} 72. Rc1 {[%emt 0:00:10]} Qe2+ {[%emt 0:00:14]} 73. Rc2 {[%emt 0:00:04]} Qe3 {[%emt 0:00:30]} 74. Qd6 {[%emt 0:01:26]} Qe4 {[%emt 0:00:33]} 75. Qd7+ {[%emt 0:01:15]} Qe6 {[%emt 0:00:22]} 76. Rg2+ {[%emt 0:00:37]} Kf5 {[%emt 0:00:04]} 77. Qxe6+ {[%emt 0:00:30]} Nxe6 {[%emt 0:00:06]} 78. Kc1 {[%emt 0:00:07]} g5 {[%emt 0:00:19]} 79. Kd1 {[%emt 0:00:05]} f3 {[%emt 0:01:29]} 80. Ra2 {[%emt 0:00:06]} Nf4 {[%emt 0:00:16]} 81. Ke1 {[%emt 0:00:08]} Nd3+ {[%emt 0:00:53]} 82. Kf1 {[%emt 0:00:02]} h5 {[%emt 0:00:36]} 83. Ra3 {[%emt 0:01:55]} Ke4 {[%emt 0:00:15]} 84. Ra4+ {[%emt 0:00:14]} Ke3 {[%emt 0:00:20]} 85. Ra5 {[%emt 0:00:16]} Kf4 {[%emt 0:00:12]} 86. Ra4+ {[%emt 0:00:04]} Kf5 {[%emt 0:00:13]} 87. Ra3 {[%emt 0:00:11]} Ne5 {[%emt 0:00:10]} 88. Kf2 {[%emt 0:00:29]} g4 {[%emt 0:00:09]} 89. h3 {[%emt 0:00:35]} Kf4 {[%emt 0:01:54]} 90. Ra4+ {[%emt 0:00:07]} Kg5 {[%emt 0:00:14]} 91. hxg4 {[%emt 0:00:13]} hxg4 {[%emt 0:00:04]} 92. Kg3 {[%emt 0:00:04]} 1/2-1/2

[Event "Azerbaijan Championship 2021"]
[Site "Nakhchivan"]
[Date "2021.05.14"]
[Round "11.6"]
[White "Gadimbayli, Abdulla"]
[Black "Abbasov, Farid"]
[Result "0-1"]
[ECO "C01"]
[WhiteElo "2470"]
[BlackElo "2528"]
[Annotator "ChessBase"]
[PlyCount "144"]
[EventDate "2021.05.04"]
[EventType "tourn"]
[EventCountry "AZE"]
[SourceTitle "playchess.com"]
[Source "ChessBase"]
[SourceQuality "1"]
[TimeControl "40/5400+30:1800+30"]

1. e4 {[%emt 0:00:00]} e6 {[%emt 0:00:00]} 2. d4 {[%emt 0:00:00]} d5 {[%emt 0:00:00]} 3. exd5 {[%emt 0:00:01]} exd5 {[%emt 0:00:02]} 4. Nf3 {[%emt 0:00:05]} Nc6 {[%emt 0:01:43]} 5. Nc3 {[%emt 0:00:45]} Bb4 {[%emt 0:00:41]} 6. Bd3 {[%emt 0:01:13]} Bg4 {[%emt 0:00:45]} 7. O-O {[%emt 0:27:30]} Nge7 {[%emt 0:00:38]} 8. Be3 {[%emt 0:07:44]} Qd7 {[%emt 0:02:47]} 9. a3 {[%emt 0:06:25]} Bd6 {[%emt 0:07:37]} 10. Nb5 {[%emt 0:04:28]} h6 {[%emt 0:01:31]} 11. Re1 {[%emt 0:05:47]} O-O {[%emt 0:00:22]} 12. h3 {[%emt 0:00:14]} Bh5 {[%emt 0:01:59]} 13. Nxd6 {[%emt 0:02:48]} Qxd6 {[%emt 0:00:15]} 14. g4 {[%emt 0:05:54]} Bg6 {[%emt 0:08:40]} 15. Ne5 {[%emt 0:00:10]} Bxd3 {[%emt 0:04:40]} 16. Qxd3 {[%emt 0:09:54]} f5 {[%emt 0:06:39]} 17. f4 {[%emt 0:19:42]} Nxe5 {[%emt 0:13:20]} 18. dxe5 {[%emt 0:02:42]} Qe6 {[%emt 0:00:06]} 19. Bc5 {[%emt 0:01:51]} fxg4 {[%emt 0:02:56]} 20. Bxe7 {[%emt 0:01:38]} Qxe7 {[%emt 0:00:01]} 21. Qxd5+ {[%emt 0:00:53]} Kh8 {[%emt 0:00:02]} 22. Qe4 {[%emt 0:00:40]} gxh3 {[%emt 0:02:33]} 23. Re3 {[%emt 0:00:31]} Qe6 {[%emt 0:11:33]} 24. Rf1 {[%emt 0:00:28]} Qg4+ {[%emt 0:07:23]} 25. Kh2 {[%emt 0:00:28]} Rad8 {[%emt 0:00:35]} 26. Rf2 {[%emt 0:00:23]} Rd1 {[%emt 0:02:38]} 27. Rg3 {[%emt 0:00:01]} Qf5 {[%emt 0:04:09]} 28. Qxf5 {[%emt 0:00:45]} Rxf5 {[%emt 0:00:05]} 29. Rxh3 {[%emt 0:00:56]} Kg8 {[%emt 0:00:34]} 30. Rc3 {[%emt 0:00:25]} Rd7 {[%emt 0:01:35]} 31. Kg3 {[%emt 0:00:33]} Kf7 {[%emt 0:00:14]} 32. Rff3 {[%emt 0:00:32]} Ke6 {[%emt 0:00:44]} 33. Rc4 {[%emt 0:00:25]} g5 {[%emt 0:02:02]} 34. fxg5 {[%emt 0:00:37]} Rxg5+ {[%emt 0:00:15]} 35. Kh4 {[%emt 0:00:29]} Kxe5 {[%emt 0:03:16]} 36. Re3+ {[%emt 0:00:23]} Kf6 {[%emt 0:03:34]} 37. Rce4 {[%emt 0:00:01]} Rf7 {[%emt 0:00:18]} 38. Rf3+ {[%emt 0:01:03]} Kg7 {[%emt 0:00:13]} 39. Ref4 {[%emt 0:00:18]} Rxf4+ {[%emt 0:00:58]} 40. Rxf4 {[%emt 0:00:00]} Rc5 {[%emt 0:00:00]} 41. c3 {[%emt 0:04:17]} Kg6 {[%emt 0:04:00]} 42. Rf8 {[%emt 0:03:01]} Rc4+ {[%emt 0:03:01]} 43. Kg3 {[%emt 0:00:21]} a5 {[%emt 0:00:29]} 44. Kf3 {[%emt 0:01:11]} a4 {[%emt 0:00:21]} 45. Rb8 {[%emt 0:01:25]} b6 {[%emt 0:00:11]} 46. Rg8+ {[%emt 0:01:20]} Kf7 {[%emt 0:00:22]} 47. Rh8 {[%emt 0:00:19]} Kg7 {[%emt 0:00:06]} 48. Re8 {[%emt 0:00:24]} h5 {[%emt 0:00:13]} 49. Re6 {[%emt 0:00:58]} Kf7 {[%emt 0:00:57]} 50. Rh6 {[%emt 0:03:08]} Rc5 {[%emt 0:00:20]} 51. Rh8 {[%emt 0:01:36]} Kg7 {[%emt 0:00:40]} 52. Ra8 {[%emt 0:00:07]} Rc4 {[%emt 0:01:08]} 53. Rd8 {[%emt 0:00:38]} Kf6 {[%emt 0:00:30]} 54. Rd5 {[%emt 0:01:51]} Kg6 {[%emt 0:00:28]} 55. Re5 {[%emt 0:00:46]} Rc5 {[%emt 0:05:43]} 56. Re7 {[%emt 0:10:19]} Kg5 {[%emt 0:00:52]} 57. Kg3 {[%emt 0:02:13]} Kf6 {[%emt 0:01:24]} 58. Re4 {[%emt 0:01:50]} b5 {[%emt 0:00:16]} 59. Re8 {[%emt 0:00:52]} Rc4 {[%emt 0:01:58]} 60. Rh8 {[%emt 0:01:05]} Rg4+ {[%emt 0:01:50]} 61. Kf3 {[%emt 0:00:24]} Kg5 {[%emt 0:00:30]} 62. Rc8 {[%emt 0:03:06]} Rf4+ {[%emt 0:00:29]} 63. Kg2 {[%emt 0:00:13]} Rc4 {[%emt 0:00:12]} 64. Rf8 {[%emt 0:01:09]} Kg4 {[%emt 0:00:08]} 65. Rf7 {[%emt 0:00:24]} Rc5 {[%emt 0:01:03]} 66. Rf6 {[%emt 0:00:12]} Rd5 {[%emt 0:00:25]} 67. Rf2 {[%emt 0:00:59]} Rd3 {[%emt 0:00:35]} 68. Rc2 {[%emt 0:00:21]} c6 {[%emt 0:00:34]} 69. Re2 {[%emt 0:00:36]} Kf5 {[%emt 0:00:45]} 70. Kh2 {[%emt 0:00:25]} c5 {[%emt 0:00:53]} 71. Kg2 {[%emt 0:00:09]} c4 {[%emt 0:00:25]} 72. Kh2 {[%emt 0:00:33]} h4 {[%emt 0:00:13]} 0-1